fUSD/lending_fUSD_20250507
["ID","MTS","AMOUNT","RATE_DAILY","PERIOD"]
[360222458,1746634241166,-500.0,0.00019773,2]
[360222459,1746634241178,-500.0,0.00019773,2]
[360222460,1746634241189,-500.0,0.00019773,2]
[360222461,1746634241201,-211.23377338,0.00019799,2]
[360222462,1746634241214,-1105.0,0.000198,2]
[360222463,1746634241225,-2000.0,0.00019839,2]
[360222464,1746634241237,-200.0,0.00019839,2]
[360222465,1746634241248,-516.22467647,0.00019863,2]
[360222466,1746634241260,-516.22467647,0.00019867,2]
[360222467,1746634241271,-516.22467647,0.00019871,2]
[360222468,1746634241283,-514.99690954,0.00019873,2]
[360222469,1746634241295,-500.0,0.00019873,2]
[360222470,1746634241307,-500.0,0.00019873,2]
[360222471,1746634241319,-500.0,0.00019873,2]
[360222472,1746634241330,-542.71797581,0.00019873,2]
[360222473,1746634241342,-634.15460321,0.00019873,2]
[360222474,1746634241356,-500.0,0.00019873,2]
[360222475,1746634241369,-500.0,0.00019873,2]
[360222476,1746634241382,-500.0,0.00019873,2]
[360222477,1746634241395,-516.22467647,0.00019875,2]
[360222478,1746634241408,-516.22467647,0.00019879,2]
[360222479,1746634241421,-516.22467647,0.00019884,2]
[360222480,1746634241432,-516.22467647,0.00019888,2]
[360222481,1746634241444,-1181.08,0.00019889,2]
[360222482,1746634241455,-516.22467647,0.00019892,2]
[360222483,1746634241467,-305.54644964,0.00019892,2]
[360222484,1746634241478,-516.22467647,0.00019896,2]
[360222485,1746634241490,-555.444062,0.00019898,2]
[360222486,1746634241501,-1954.182316,0.00019898,2]
[360222487,1746634241513,-154.430525,0.00019898,2]
[360222488,1746634241524,-450.0,0.00019898,2]
[360222489,1746634241536,-558.89,0.00019898,2]
[360222490,1746634241547,-450.0,0.00019898,2]
[360222491,1746634241559,-450.0,0.00019898,2]
[360222492,1746634241571,-450.0,0.00019898,2]
[360222493,1746634241583,-450.0,0.00019898,2]
[360222494,1746634241594,-450.0,0.00019898,2]
[360222495,1746634241606,-500.0,0.00019898,2]
[360222496,1746634241617,-450.0,0.00019898,2]
[360222497,1746634241628,-500.0,0.00019898,2]
[360222498,1746634241640,-450.0,0.00019898,2]
[360222499,1746634241651,-450.0,0.00019898,2]
[360222500,1746634241663,-450.0,0.00019898,2]
[360222501,1746634241675,-450.0,0.00019898,2]
[360222502,1746634241687,-450.0,0.00019898,2]
[360222503,1746634241699,-450.0,0.00019898,2]
[360222504,1746634241712,-504.86,0.00019898,2]
[360222505,1746634241724,-450.0,0.00019898,2]
[360222506,1746634241736,-450.0,0.00019898,2]
[360222507,1746634241749,-450.0,0.00019898,2]
[360222508,1746634241762,-450.0,0.00019898,2]
[360222509,1746634241775,-450.0,0.00019898,2]
[360222510,1746634241788,-450.0,0.00019898,2]
[360222511,1746634241800,-450.0,0.00019898,2]
[360222512,1746634241812,-75.94151574,0.00019898,2]
[360222513,1746634242099,-374.05848426,0.00019898,2]
[360222514,1746634242111,-450.0,0.00019898,2]
[360222515,1746634242123,-450.0,0.00019898,2]
[360222516,1746634242134,-191.65362703,0.00019898,2]
[360222517,1746634242148,-258.34637297,0.00019898,2]
[360222518,1746634242158,-169.36106082,0.00019898,2]
[360222519,1746634242213,-377.02893918,0.00019898,2]
[360222520,1746634242223,-450.0,0.00019898,2]
[360222521,1746634242234,-450.0,0.00019898,2]
[360222522,1746634242243,-450.0,0.00019898,2]
[360222523,1746634242254,-450.0,0.00019898,2]
[360222524,1746634242263,-492.77,0.00019898,2]
[360222525,1746634242274,-450.0,0.00019898,2]
[360222526,1746634242283,-450.0,0.00019898,2]
[360222527,1746634242293,-450.0,0.00019898,2]
[360222528,1746634242594,-450.0,0.00019898,2]
[360222529,1746634242615,-450.0,0.00019898,2]
[360222530,1746634242624,-348.15093681,0.00019898,2]
[360222531,1746634242634,-450.0,0.00019898,2]
[360222532,1746634242643,-513.8,0.00019898,2]
[360222533,1746634242652,-450.0,0.00019898,2]
[360222534,1746634242663,-490.32,0.00019898,2]
[360222535,1746634242673,-450.0,0.00019898,2]
[360222536,1746634242683,-450.0,0.00019898,2]
[360222538,1746634242692,-450.0,0.00019898,2]
[360222539,1746634242701,-450.0,0.00019898,2]
[360222540,1746634242710,-207.555327,0.00019898,2]
[360222541,1746634242722,-742.774673,0.00019898,2]
[360222542,1746634242732,-463.47,0.00019898,2]
[360222543,1746634242742,-595.35,0.00019898,2]
[360222544,1746634242752,-450.0,0.00019898,2]
[360222545,1746634242762,-199.29,0.00019898,2]
[360222546,1746634242771,-450.0,0.00019898,2]
[360222547,1746634242781,-556.66,0.00019898,2]
[360222548,1746634242790,-450.0,0.00019898,2]
[360222549,1746634242799,-450.0,0.00019898,2]
[360222550,1746634242809,-282.56,0.00019898,2]
[360222551,1746634242819,-346.4166,0.00019899,2]
[360222552,1746634242831,-450.0,0.00019899,2]
[360222553,1746634242841,-450.0,0.00019899,2]
[360222554,1746634242850,-450.0,0.00019899,2]
[360222555,1746634242860,-500.0,0.00019899,2]
[360222556,1746634242870,-450.0,0.00019899,2]
[360222557,1746634242879,-500.99803008,0.00019899,2]
[360222559,1746634242889,-450.0,0.00019899,2]
[360222561,1746634242898,-450.0,0.00019899,2]
[360222562,1746634242907,-450.0,0.00019899,2]
[360222563,1746634242918,-450.0,0.00019899,2]
[360222564,1746634242928,-450.0,0.00019899,2]
[360222565,1746634242937,-450.0,0.00019899,2]
[360222566,1746634242947,-32.29439688,0.00019899,2]
[360222567,1746634242960,-417.70560312,0.00019899,2]
[360222568,1746634242970,-450.0,0.00019899,2]
[360222569,1746634242979,-450.0,0.00019899,2]
[360222570,1746634242991,-450.0,0.00019899,2]
[360222572,1746634243000,-450.0,0.00019899,2]
[360222573,1746634243009,-450.0,0.00019899,2]
[360222575,1746634243019,-450.0,0.00019899,2]
[360222577,1746634243028,-450.0,0.00019899,2]
[360222579,1746634243038,-450.0,0.00019899,2]
[360222580,1746634243047,-450.0,0.00019899,2]
[360222581,1746634243057,-450.0,0.00019899,2]
[360222582,1746634243067,-463.42761363,0.00019899,2]
[360222583,1746634243077,-450.0,0.00019899,2]
[360222584,1746634243086,-450.0,0.00019899,2]
[360222585,1746634243095,-450.0,0.00019899,2]
[360222586,1746634243105,-302.33454436,0.00019899,2]
[360222587,1746634243114,-499.64154385,0.00019899,2]
[360222588,1746634243124,-450.0,0.00019899,2]
[360222589,1746634243134,-450.0,0.00019899,2]
[360222590,1746634243143,-450.0,0.00019899,2]
[360222591,1746634243153,-450.0,0.00019899,2]
[360222592,1746634243162,-450.0,0.00019899,2]
[360222593,1746634243173,-450.0,0.00019899,2]
[360222594,1746634243183,-565.35000379,0.00019899,2]
[360222595,1746634243192,-450.0,0.00019899,2]
[360222596,1746634243204,-450.0,0.00019899,2]
[360222597,1746634243215,-30.41098104,0.00019899,2]
[360222598,1746634243230,-419.58901896,0.00019899,2]
[360222599,1746634243240,-594.43649146,0.00019899,2]
[360222600,1746634243251,-450.0,0.00019899,2]
[360222601,1746634243260,-522.10512428,0.00019899,2]
[360222602,1746634243269,-450.0,0.00019899,2]
[360222603,1746634243279,-450.0,0.00019899,2]
[360222604,1746634243288,-514.43820622,0.00019899,2]
[360222605,1746634243298,-450.0,0.00019899,2]
[360222606,1746634243309,-450.0,0.00019899,2]
[360222607,1746634243320,-470.4525043,0.00019899,2]
[360222608,1746634243332,-69.3274957,0.00019899,2]
[360222609,1746634243342,-506.63,0.00019899,2]
[360222610,1746634243353,-424.0425043,0.00019899,2]
[360222611,1746634243365,-25.9574957,0.00019899,2]
[360222612,1746634243374,-450.0,0.00019899,2]
[360222613,1746634243383,-51.59770557,0.00019899,2]
[360222614,1746634243399,-398.40229443,0.00019899,2]
[360222615,1746634243408,-450.0,0.00019899,2]
[360222616,1746634243418,-450.0,0.00019899,2]
[360222617,1746634243427,-368.84974199,0.00019899,2]
[360222618,1746634243436,-220.18,0.00019899,2]
[360222619,1746634243445,-450.0,0.00019899,2]
[360222620,1746634243455,-450.0,0.00019899,2]
[360222621,1746634243465,-450.0,0.00019899,2]
[360222622,1746634243474,-450.0,0.00019899,2]
[360222623,1746634243483,-541.67,0.00019899,2]
[360222624,1746634243492,-450.0,0.00019899,2]
[360222625,1746634243502,-450.0,0.00019899,2]
[360222626,1746634243512,-450.0,0.00019899,2]
[360222627,1746634243521,-468.29395839,0.00019899,2]
[360222628,1746634243531,-450.0,0.00019899,2]
[360222629,1746634243540,-450.0,0.00019899,2]
[360222630,1746634243551,-477.58515554,0.00019899,2]
[360222631,1746634243562,-450.0,0.00019899,2]
[360222632,1746634243571,-450.0,0.00019899,2]
[360222633,1746634243583,-450.0,0.00019899,2]
[360222634,1746634243592,-450.0,0.00019899,2]
[360222635,1746634243601,-450.0,0.00019899,2]
[360222636,1746634243611,-450.0,0.00019899,2]
[360222637,1746634243621,-450.0,0.00019899,2]
[360222639,1746634243630,-450.0,0.00019899,2]
[360222640,1746634243641,-450.0,0.00019899,2]
[360222641,1746634243651,-450.0,0.00019899,2]
[360222642,1746634243662,-450.0,0.00019899,2]
[360222643,1746634243673,-450.0,0.00019899,2]
[360222644,1746634243682,-450.0,0.00019899,2]
[360222645,1746634243691,-450.0,0.00019899,2]
[360222646,1746634243700,-450.0,0.00019899,2]
[360222647,1746634243709,-228.65968944,0.00019899,2]
[360222648,1746634243719,-450.0,0.00019899,2]
[360222649,1746634243728,-494.0564744,0.00019899,2]
[360222650,1746634243737,-467.42882723,0.00019899,2]
[360222651,1746634243747,-450.0,0.00019899,2]
[360222652,1746634243758,-450.0,0.00019899,2]
[360222653,1746634243768,-450.0,0.00019899,2]
[360222654,1746634243777,-450.0,0.00019899,2]
[360222655,1746634243787,-450.0,0.00019899,2]
[360222656,1746634243796,-450.0,0.00019899,2]
[360222657,1746634243806,-450.0,0.00019899,2]
[360222658,1746634243815,-450.0,0.00019899,2]
[360222659,1746634243825,-102.71108116,0.00019899,2]
[360222660,1746634243903,-347.28891884,0.00019899,2]
[360222661,1746634243913,-450.0,0.00019899,2]
[360222662,1746634243924,-450.0,0.00019899,2]
[360222663,1746634243934,-489.98549927,0.00019899,2]
[360222664,1746634243943,-440.47174341,0.00019899,2]
[360222665,1746634243954,-120.0027529,0.00019899,2]
[360222666,1746634243963,-450.0,0.00019899,2]
[360222667,1746634243973,-450.0,0.00019899,2]
[360222668,1746634243981,-450.0,0.00019899,2]
[360222669,1746634243990,-4430.46,0.00019899,2]
[360222670,1746634243999,-450.0,0.00019899,2]
[360222671,1746634244009,-260.09051039,0.00019899,2]
[360222672,1746634244018,-450.0,0.00019899,2]
[360222673,1746634244027,-450.0,0.00019899,2]
[360222674,1746634244036,-997.07,0.00019899,2]
[360222675,1746634244046,-450.0,0.00019899,2]
[360222676,1746634244054,-450.0,0.00019899,2]
[360222677,1746634244063,-450.0,0.00019899,2]
[360222678,1746634244073,-569.24456126,0.00019899,2]
[360222679,1746634244082,-450.0,0.00019899,2]
[360222680,1746634244091,-450.0,0.00019899,2]
[360222681,1746634244101,-450.0,0.00019899,2]
[360222682,1746634244110,-450.0,0.00019899,2]
[360222683,1746634244120,-450.0,0.00019899,2]
[360222684,1746634244129,-450.0,0.00019899,2]
[360222685,1746634244138,-450.0,0.00019899,2]
[360222686,1746634244148,-450.0,0.00019899,2]
[360222687,1746634244157,-450.0,0.00019899,2]
[360222688,1746634244169,-450.0,0.00019899,2]
[360222689,1746634244178,-450.0,0.00019899,2]
[360222690,1746634244188,-450.0,0.00019899,2]
[360222691,1746634244198,-450.0,0.00019899,2]
[360222692,1746634244208,-509.82,0.00019899,2]
[360222693,1746634244220,-450.0,0.00019899,2]
[360222694,1746634244231,-450.0,0.00019899,2]
[360222695,1746634244240,-450.0,0.00019899,2]
[360222696,1746634244253,-450.0,0.00019899,2]
[360222697,1746634244265,-561.55,0.00019899,2]
[360222698,1746634244275,-450.0,0.00019899,2]
[360222699,1746634244286,-450.0,0.00019899,2]
[360222700,1746634244295,-475.04609516,0.00019899,2]
[360222701,1746634244305,-450.0,0.00019899,2]
[360222702,1746634244315,-450.0,0.00019899,2]
[360222703,1746634244324,-450.0,0.00019899,2]
[360222704,1746634244333,-450.0,0.00019899,2]
[360222705,1746634244343,-450.0,0.00019899,2]
[360222706,1746634244353,-450.0,0.00019899,2]
[360222707,1746634244362,-499.1,0.00019899,2]
[360222708,1746634244371,-450.0,0.00019899,2]
[360222709,1746634244381,-450.0,0.00019899,2]
[360222710,1746634244391,-450.0,0.00019899,2]
[360222711,1746634244400,-450.0,0.00019899,2]
[360222712,1746634244410,-450.0,0.00019899,2]
[360222713,1746634244421,-450.0,0.00019899,2]
[360222714,1746634244430,-450.0,0.00019899,2]
[360222715,1746634244440,-487.18,0.00019899,2]
[360222716,1746634244449,-487.14,0.00019899,2]
[360222717,1746634244458,-450.0,0.00019899,2]
[360222718,1746634244467,-450.0,0.00019899,2]
[360222719,1746634244476,-450.0,0.00019899,2]
[360222720,1746634244486,-450.0,0.00019899,2]
[360222721,1746634244496,-450.0,0.00019899,2]
[360222722,1746634244505,-450.0,0.00019899,2]
[360222723,1746634244515,-450.0,0.00019899,2]
[360222724,1746634244524,-450.0,0.00019899,2]
[360222725,1746634244535,-389.22044254,0.00019899,2]
[360222726,1746634244546,-450.0,0.00019899,2]
[360222727,1746634244555,-450.0,0.00019899,2]
[360222728,1746634244566,-450.0,0.00019899,2]
[360222729,1746634244576,-450.0,0.00019899,2]
[360222730,1746634244587,-450.0,0.00019899,2]
[360222731,1746634244597,-450.0,0.00019899,2]
[360222732,1746634244607,-450.0,0.00019899,2]
[360222733,1746634244618,-450.0,0.00019899,2]
[360222734,1746634244629,-4007.34,0.00019899,2]
[360222735,1746634244639,-450.0,0.00019899,2]
[360222736,1746634244649,-450.0,0.00019899,2]
[360222737,1746634244659,-450.0,0.00019899,2]
[360222738,1746634244669,-450.0,0.00019899,2]
[360222739,1746634244679,-979.47,0.00019899,2]
[360222740,1746634244689,-450.0,0.00019899,2]
[360222741,1746634244699,-450.0,0.00019899,2]
[360222742,1746634244709,-450.0,0.00019899,2]
[360222743,1746634244719,-450.0,0.00019899,2]
[360222744,1746634244730,-482.6828575,0.00019899,2]
[360222745,1746634244740,-572.82072867,0.00019899,2]
[360222746,1746634244750,-450.0,0.00019899,2]
[360222747,1746634244760,-450.0,0.00019899,2]
[360222748,1746634244769,-450.0,0.00019899,2]
[360222749,1746634244779,-450.0,0.00019899,2]
[360222750,1746634244789,-450.0,0.00019899,2]
[360222751,1746634244799,-450.0,0.00019899,2]
[360222752,1746634244810,-189.95719342,0.00019899,2]
[360222753,1746634244820,-450.0,0.00019899,2]
[360222754,1746634244830,-450.0,0.00019899,2]
[360222755,1746634244840,-450.0,0.00019899,2]
[360222756,1746634244850,-450.0,0.00019899,2]
[360222757,1746634244860,-189.95719341,0.000199,2]
[360222758,1746634244870,-12484.2122,0.000199,2]
[360222759,1746634244880,-452.08,0.000199,2]
[360222760,1746634244890,-173.67,0.000199,2]
[360222761,1746634244899,-1155.27,0.000199,2]
[360222762,1746634244909,-192.28,0.000199,2]
[360222763,1746634244920,-341.81,0.000199,2]
[360222764,1746634244930,-352.43,0.000199,2]
[360222765,1746634244940,-189.61090934,0.000199,2]
[360222766,1746634244950,-456.71,0.000199,2]
[360222767,1746634244960,-1586.5649638,0.000199,2]
[360222768,1746634244970,-268.39073204,0.000199,2]
[360222769,1746634244980,-150.0,0.000199,2]
[360222770,1746634244995,-300.0,0.000199,2]
[360222771,1746634245004,-456.71,0.000199,2]
[360222772,1746634245014,-1069.55667447,0.000199,2]
[360222773,1746634245025,-646.66334945,0.000199,2]
[360222774,1746634245034,-194.77304098,0.000199,3]
[360222775,1746634245045,-1000.0,0.000199,2]
[360222776,1746634245055,-1613.92529432,0.000199,2]
[360222777,1746634245066,-503.80899162,0.000199,2]
[360222778,1746634245075,-456.71,0.000199,2]
[360222779,1746634245085,-802.64,0.000199,2]
[360222780,1746634245095,-1020.80533802,0.000199,2]
[360222781,1746634245110,-1272.35122234,0.000199,2]
[360222795,1746634249198,-253.7501049,0.00019678,2]
[360222796,1746634249208,-3345.7283721,0.000199,2]
[360222797,1746634249218,-37.976123,0.000199,2]
[360222798,1746634249231,-478.24855347,0.000199,2]
[360222799,1746634249243,-188.77852236,0.000199,2]
[360222800,1746634249252,-189.95719341,0.000199,2]
[360222801,1746634249263,-151.0,0.00019914,2]
[360222802,1746634249273,-151.0,0.00019916,2]
[360222803,1746634249283,-8.52573076,0.00019918,2]
[360222804,1746634249493,-142.47426924,0.00019918,2]
[360222805,1746634249503,-151.0,0.00019926,2]
[360222806,1746634249512,-1.4224539,0.00019935,2]
[360222807,1746634249524,-1140.5775461,0.00019935,2]
[360222808,1746634249533,-695.13751506,0.00019935,2]
[360222809,1746634249543,-899.20354635,0.00019952,2]
[360222810,1746634249557,-424.387078,0.00019952,2]
[360222811,1746634249577,-918.38477403,0.00019952,2]
[360222812,1746634249589,-2576.02460163,0.00019952,2]
[360222813,1746634249599,-450.0,0.00019953,2]
[360222814,1746634249608,-450.0,0.00019953,2]
[360222815,1746634249618,-249.05,0.00019953,2]
[360222816,1746634249627,-450.0,0.00019953,2]
[360222817,1746634249637,-450.0,0.00019953,2]
[360222818,1746634249647,-405.57595501,0.00019954,2]
[360222819,1746634249659,-44.42404499,0.00019954,2]
[360222820,1746634249668,-450.0,0.00019954,2]
[360222821,1746634249677,-450.0,0.00019954,2]
[360222822,1746634249687,-450.0,0.00019954,2]
[360222823,1746634249696,-340.01595501,0.00019954,2]
[360222824,1746634249727,-109.98404499,0.00019954,2]
[360222825,1746634249737,-450.0,0.00019954,2]
[360222826,1746634249746,-77.15594592,0.00019954,2]
[360222827,1746634249762,-372.84405408,0.00019954,2]
[360222828,1746634249771,-450.0,0.00019954,2]
[360222829,1746634249781,-450.0,0.00019954,2]
[360222830,1746634249791,-450.0,0.00019954,2]
[360222831,1746634249800,-450.0,0.00019954,2]
[360222832,1746634249810,-450.0,0.00019954,2]
[360222833,1746634249819,-450.0,0.00019954,2]
[360222834,1746634249829,-450.0,0.00019954,2]
[360222835,1746634249839,-450.0,0.00019954,2]
[360222836,1746634249849,-450.0,0.00019954,2]
[360222837,1746634249858,-450.0,0.00019954,2]
[360222838,1746634249868,-450.0,0.00019954,2]
[360222839,1746634249878,-450.0,0.00019954,2]
[360222840,1746634249887,-450.0,0.00019954,2]
[360222841,1746634249897,-450.0,0.00019954,2]
[360222842,1746634249907,-465.68,0.00019954,2]
[360222843,1746634249917,-450.0,0.00019954,2]
[360222844,1746634249928,-450.0,0.00019954,2]
[360222845,1746634249938,-5618.58,0.00019954,2]
[360222846,1746634249948,-450.0,0.00019963,2]
[360222847,1746634249958,-450.0,0.00019963,2]
[360222848,1746634249968,-450.0,0.00019963,2]
[360222849,1746634249978,-450.0,0.00019963,2]
[360222850,1746634249988,-450.0,0.00019963,2]
[360222851,1746634249998,-450.0,0.00019963,2]
[360222852,1746634250008,-450.0,0.00019963,2]
[360222853,1746634250019,-450.0,0.00019963,2]
[360222854,1746634250029,-450.0,0.00019963,2]
[360222855,1746634250040,-450.0,0.00019963,2]
[360222856,1746634250050,-450.0,0.00019963,2]
[360222857,1746634250060,-337.10874592,0.00019963,2]
[360222858,1746634270900,1715.46,0.00019016,2]
[360222860,1746634379713,23900.0,0.00018933,2]
[360222861,1746634420951,430.36,0.000189,7]
[360222862,1746634443461,250.0,0.00018921,2]
[360222863,1746634534708,-200.0,0.000195,2]
[360222864,1746634550748,-166.66,0.000195,2]
[360222865,1746634565850,-164.45814965,0.000195,2]
[360222866,1746634567754,1842.3,0.00018894,2]
[360222867,1746634579667,-248.29830939,0.000195,2]
[360222868,1746634581076,500.0,0.0003,30]
[360222869,1746634593024,579.416459,0.00019402,2]
[360222870,1746634749142,158.95,0.00018904,2]
[360222871,1746634780140,166.36,0.0001947,2]
[360222872,1746634885704,3000.0,0.0003,30]
[360222873,1746634917533,241.98,0.0003,30]
[360222874,1746634929473,500.0,0.0003,30]
[360222875,1746634973013,150.0,0.0003,30]
[360222876,1746634974727,1000.0,0.00018906,2]
[360222877,1746634990469,216.15,0.00018905,2]
[360222878,1746634995976,150.0,0.00018986,7]
[360222879,1746635051351,2374.97,0.00018902,2]
[360222887,1746635238150,500.0,0.0003,30]
[360222889,1746635335756,854.08,0.00016978,2]
[360222890,1746635335802,854.08,0.00019242,2]
[360222891,1746635383820,23900.0,0.00018914,2]
[360222901,1746635401443,1200.0,0.00019499,2]
[360222902,1746635419888,318.56,0.0001891,2]
[360222903,1746635420659,318.56,0.00026001,120]
[360222904,1746635421114,318.56,0.00028365,120]
[360222905,1746635424161,401.61452519,0.00019403,2]
[360222906,1746635430167,401.61452517,0.00019408,2]
[360222912,1746635432014,-246.58354096,0.000195,2]
[360222913,1746635432024,-151.0,0.000195,2]
[360222914,1746635432033,-151.0,0.000195,2]
[360222915,1746635432043,-151.0,0.000195,2]
[360222916,1746635432052,-207.4,0.000195,2]
[360222917,1746635432062,-668.65185757,0.000195,2]
[360222918,1746635432071,-200.0,0.00019502,2]
[360222919,1746635432081,-300.0,0.00019503,2]
[360222920,1746635432091,-2538.39958177,0.00019504,2]
[360222921,1746635432103,-1809.29999999,0.00019504,2]
[360222922,1746635432178,-2901.81,0.00019504,2]
[360222923,1746635432235,-1342.74998343,0.00019504,2]
[360222924,1746635432287,-5016.25995745,0.00019504,2]
[360222925,1746635432299,-1807.0,0.00019504,2]
[360222947,1746635436145,401.61452517,0.00019413,2]
[360222950,1746635438090,-784.4266,0.00019504,2]
[360222951,1746635438249,-9059.99999998,0.00019504,2]
[360222952,1746635438826,-625.83486967,0.00019504,2]
[360222953,1746635438838,-978.07853166,0.00019504,2]
[360222970,1746635440249,-1183.65851976,0.00019504,2]
[360222971,1746635440303,-1870.89999997,0.00019504,2]
[360222972,1746635440545,-500.0,0.00019504,2]
[360222973,1746635440676,-9533.75649422,0.00019504,2]
[360222974,1746635440687,-10789.55177739,0.00019504,2]
[360223003,1746635442899,250.0,0.00018916,2]
[360223016,1746635443363,-3071.39999961,0.00019504,2]
[360223017,1746635443376,-12926.96255881,0.00019504,2]
[360223018,1746635443387,-200.0,0.00019513,2]
[360223019,1746635443397,-325.78,0.00019685,2]
[360223020,1746635443407,-162.88,0.00019686,2]
[360223021,1746635443418,-162.88,0.00019698,2]
[360223022,1746635443428,-162.88,0.00019699,2]
[360223023,1746635443437,-162.88,0.000197,2]
[360223024,1746635443447,-261.40628,0.0001976,23]
[360223026,1746635443457,-2000.0,0.00019839,2]
[360223027,1746635443468,-500.0,0.00019873,2]
[360223028,1746635443479,-500.0,0.00019873,2]
[360223029,1746635443489,-177.62507343,0.00019884,2]
[360223030,1746635443500,-554.09550734,0.00019885,2]
[360223031,1746635443510,-177.62507343,0.00019886,2]
[360223032,1746635443525,-307.16615948,0.00019886,2]
[360223033,1746635443536,-254.34917126,0.00019886,2]
[360223034,1746635443550,-214.7125856,0.00019886,2]
[360223035,1746635443561,-177.62507343,0.00019888,2]
[360223036,1746635443572,-254.34917126,0.00019888,2]
[360223037,1746635443583,-1124.43622448,0.00019888,2]
[360223038,1746635443594,-254.34917126,0.00019889,2]
[360223039,1746635443604,-177.62507343,0.00019889,2]
[360223040,1746635443616,-254.34917126,0.00019891,2]
[360223041,1746635443632,-177.62507343,0.00019891,2]
[360223043,1746635443642,-254.34917126,0.00019892,2]
[360223045,1746635443652,-177.62507343,0.00019893,2]
[360223047,1746635443661,-254.34917126,0.00019894,2]
[360223049,1746635443670,-177.62507343,0.00019895,2]
[360223050,1746635443680,-254.34917126,0.00019895,2]
[360223051,1746635443689,-177.62507343,0.00019896,2]
[360223052,1746635443698,-254.34917126,0.00019897,2]
[360223053,1746635443709,-320.46551568,0.00019897,2]
[360223054,1746635443719,-500.0,0.00019897,2]
[360223055,1746635443728,-500.0,0.00019897,2]
[360223056,1746635443740,-500.0,0.00019897,2]
[360223057,1746635443749,-500.0,0.00019897,2]
[360223059,1746635443759,-500.0,0.00019897,2]
[360223061,1746635443770,-500.0,0.00019897,2]
[360223063,1746635443779,-500.0,0.00019897,2]
[360223065,1746635443788,-500.0,0.00019897,2]
[360223067,1746635443798,-500.0,0.00019897,2]
[360223069,1746635443809,-500.0,0.00019897,2]
[360223071,1746635443820,-500.0,0.00019897,2]
[360223072,1746635443829,-500.0,0.00019897,2]
[360223073,1746635443839,-303.73066206,0.00019897,2]
[360223074,1746635443850,-278.262438,0.00019897,2]
[360223075,1746635443859,-500.0,0.00019897,2]
[360223076,1746635443870,-500.0,0.00019897,2]
[360223077,1746635443882,-500.0,0.00019897,2]
[360223078,1746635443891,-500.0,0.00019897,2]
[360223079,1746635443901,-500.0,0.00019897,2]
[360223080,1746635443910,-500.0,0.00019897,2]
[360223081,1746635443920,-500.0,0.00019897,2]
[360223082,1746635443929,-500.0,0.00019897,2]
[360223083,1746635443939,-500.0,0.00019897,2]
[360223084,1746635443948,-500.0,0.00019897,2]
[360223085,1746635443962,-500.0,0.00019897,2]
[360223086,1746635443972,-500.0,0.00019897,2]
[360223087,1746635443981,-500.0,0.00019897,2]
[360223088,1746635443991,-500.0,0.00019897,2]
[360223089,1746635444002,-500.0,0.00019897,2]
[360223090,1746635444011,-500.0,0.00019897,2]
[360223091,1746635444021,-184.05227615,0.00019897,2]
[360223092,1746635444031,-500.0,0.00019897,2]